[Event "SixDays Budapest GM-A 09-2024"]
[Site "Budapest"]
[Date "2024.09.26"]
[Round "4.5"]
[White "Mohammad Fahad, Rahman"]
[Black "Mamatov, Melis"]
[Result "0-1"]
[ECO "D17"]
[WhiteElo "2419"]
[BlackElo "2362"]
[Annotator "RC"]
[PlyCount "144"]
[EventDate "2024.09.24"]
[EventType "tourn"]
[EventCountry "HUN"]
[SourceTitle "playchess.com"]
[Source "ChessBase"]
[SourceQuality "1"]
[TimeControl "5400+30"]

1. d4 {[%emt 0:02:09]} d5 {[%emt 0:00:17]} 2. c4 {[%emt 0:00:16]} c6 {[%emt 0:00:17]} 3. Nc3 {[%emt 0:00:36]} Nf6 {[%emt 0:00:11]} 4. Nf3 {[%emt 0:00:19]} dxc4 {[%emt 0:00:24]} 5. a4 {[%emt 0:00:26]} Bf5 {[%emt 0:00:52]} 6. Ne5 {[%emt 0:00:19]} Nbd7 {[%emt 0:00:10]} 7. Nxc4 {[%emt 0:00:10]} Qc7 {[%emt 0:00:13]} 8. g3 {[%emt 0:00:21]} e5 {[%emt 0:00:15]} 9. dxe5 {[%emt 0:00:12]} Nxe5 {[%emt 0:00:07]} 10. Bf4 {[%emt 0:00:10]} Nfd7 {[%emt 0:01:08]} 11. Bg2 {[%emt 0:00:15]} g5 {[%emt 0:00:16]} 12. Ne3 {[%emt 0:01:09]} gxf4 {[%emt 0:00:39]} 13. Nxf5 {[%emt 0:00:09]} O-O-O {[%emt 0:03:27]} 14. Qc2 {[%emt 0:00:11]} a5 {[%emt 0:06:41]} 15. O-O-O {[%emt 0:12:15]} fxg3 {[%emt 0:03:24]} 16. hxg3 {[%emt 0:00:15]} Nc5 {[%emt 0:00:39]} 17. Ne4 {[%emt 0:03:06]} Rxd1+ {[%emt 0:10:51]} 18. Rxd1 {[%emt 0:00:36]} Nxe4 {[%emt 0:00:05]} 19. Qxe4 {[%emt 0:00:26]} Bc5 {[%emt 0:00:11]} 20. f4 {[%emt 0:01:48]} Ng4 {[%emt 0:11:51]} 21. Qc4 {[%emt 0:03:36]} Bb4 {[%emt 0:00:43]} 22. Bf3 {[%emt 0:05:03]} h5 {[%emt 0:04:44]} 23. e4 {[%emt 0:05:42]} Rd8 {[%emt 0:14:51]} 24. Kb1 {[%emt 0:02:36]} Kb8 {[%emt 0:07:12]} 25. Ka2 {[%emt 0:02:07]} Rd7 {[%emt 0:02:12]} 26. Rxd7 {[%emt 0:14:49]} Qxd7 {[%emt 0:00:22]} 27. Ng7 {[%emt 0:00:10]} Ne3 {[%emt 0:04:53]} 28. Qb3 {[%emt 0:02:19]} Nf1 {[%emt 0:07:10]} 29. Be2 {[%emt 0:07:50]} Nd2 {[%emt 0:02:03]} 30. Qd3 {[%emt 0:00:08]} Qe7 {[%emt 0:00:35]} 31. e5 {[%emt 0:01:10]} h4 {[%emt 0:02:15]} 32. gxh4 {[%emt 0:01:48]} Qxh4 {[%emt 0:00:18]} 33. Nh5 {[%emt 0:03:54]} Qe7 {[%emt 0:03:18]} 34. Bg4 {[%emt 0:02:53]} Qc5 {[%emt 0:04:57]} 35. Nf6 {[%emt 0:01:09]} Qc1 {[%emt 0:00:19]} 36. Bf5 {[%emt 0:01:51]} Nc4 {[%emt 0:01:22]} 37. Qc2 {[%emt 0:00:32]} Qxf4 {[%emt 0:00:27]} 38. Qd3 {[%emt 0:05:32]} Nxe5 {[%emt 0:02:13]} 39. Nd7+ {[%emt 0:00:15]} Nxd7 {[%emt 0:00:19]} 40. Qxd7 {[%emt 0:00:02]} Qc4+ {[%emt 0:00:35]} 41. Kb1 {[%emt 0:00:14]} Ka7 {[%emt 0:00:26]} 42. Bc2 {[%emt 0:01:54]} Bc5 {[%emt 0:00:59]} 43. Qf5 {[%emt 0:00:14]} Kb6 {[%emt 0:06:03]} 44. Qd7 {[%emt 0:01:16]} Ka7 {[%emt 0:01:20]} 45. Qf5 {[%emt 0:00:02]} Bb6 {[%emt 0:00:25]} 46. Qf3 {[%emt 0:00:17]} Qe6 {[%emt 0:00:32]} 47. Bb3 {[%emt 0:01:41]} Qg6+ {[%emt 0:00:02]} 48. Ka2 {[%emt 0:00:13]} f6 {[%emt 0:00:04]} 49. Be6 {[%emt 0:00:20]} Qg7 {[%emt 0:00:29]} 50. Qf5 {[%emt 0:00:23]} Qe7 {[%emt 0:00:07]} 51. Kb1 {[%emt 0:02:25]} Qb4 {[%emt 0:00:22]} 52. Qg4 {[%emt 0:02:34]} Bd4 {[%emt 0:00:18]} 53. Bb3 {[%emt 0:00:07]} Qxb3 {[%emt 0:00:38]} 54. Qxd4+ {[%emt 0:00:09]} Ka6 {[%emt 0:00:05]} 55. Qxf6 {[%emt 0:00:48]} Qd1+ {[%emt 0:00:02]} 56. Ka2 {[%emt 0:00:08]} Qxa4+ {[%emt 0:00:01]} 57. Kb1 {[%emt 0:00:06]} Qd1+ {[%emt 0:00:12]} 58. Ka2 {[%emt 0:00:02]} Qd5+ {[%emt 0:00:01]} 59. Kb1 {[%emt 0:00:35]} a4 {[%emt 0:00:45]} 60. Qe7 {[%emt 0:00:22]} Qd1+ {[%emt 0:00:17]} 61. Ka2 {[%emt 0:00:10]} Qb3+ {[%emt 0:00:10]} 62. Ka1 {[%emt 0:00:11]} Qb5 {[%emt 0:00:55]} 63. Qd8 {[%emt 0:00:43]} Ka7 {[%emt 0:00:20]} 64. Qd4+ {[%emt 0:00:11]} c5 {[%emt 0:00:19]} 65. Qd8 {[%emt 0:00:18]} Qb4 {[%emt 0:00:30]} 66. Qd3 {[%emt 0:00:24]} a3 {[%emt 0:01:15]} 67. Qxa3+ {[%emt 0:02:27]} Qxa3+ {[%emt 0:00:02]} 68. bxa3 {[%emt 0:00:07]} Kb6 {[%emt 0:00:07]} 69. Kb2 {[%emt 0:00:06]} Kb5 {[%emt 0:00:16]} 70. Kb3 {[%emt 0:00:08]} c4+ {[%emt 0:00:11]} 71. Kc3 {[%emt 0:00:06]} Kc5 {[%emt 0:00:08]} 72. a4 {[%emt 0:00:08]} b6 {[%emt 0:00:05]} 0-1

[Event "SixDays Budapest GM-A 09-2024"]
[Site "Budapest"]
[Date "2024.09.26"]
[Round "5.2"]
[White "Chen, Yining"]
[Black "Mohammad Fahad, Rahman"]
[Result "0-1"]
[ECO "D45"]
[WhiteElo "2252"]
[BlackElo "2419"]
[Annotator "RC"]
[PlyCount "130"]
[EventDate "2024.09.24"]
[EventType "tourn"]
[EventCountry "HUN"]
[SourceTitle "playchess.com"]
[Source "ChessBase"]
[SourceQuality "1"]
[TimeControl "5400+30"]

1. d4 {[%emt 0:03:32]} d5 {[%emt 0:00:30]} 2. c4 {[%emt 0:00:05]} e6 {[%emt 0:00:09]} 3. Nf3 {[%emt 0:00:10]} Nf6 {[%emt 0:00:15]} 4. Nc3 {[%emt 0:00:12]} c6 {[%emt 0:00:07]} 5. e3 {[%emt 0:00:26]} Nbd7 {[%emt 0:00:08]} 6. Be2 {[%emt 0:00:13]} Bd6 {[%emt 0:00:11]} 7. O-O {[%emt 0:00:09]} O-O {[%emt 0:00:08]} 8. b3 {[%emt 0:00:07]} b6 {[%emt 0:00:07]} 9. Bb2 {[%emt 0:00:06]} Bb7 {[%emt 0:00:07]} 10. Bd3 {[%emt 0:00:08]} Re8 {[%emt 0:00:36]} 11. Re1 {[%emt 0:00:17]} a6 {[%emt 0:00:09]} 12. Rc1 {[%emt 0:07:21]} h6 {[%emt 0:02:33]} 13. Rc2 {[%emt 0:02:29]} dxc4 {[%emt 0:01:32]} 14. bxc4 {[%emt 0:08:09]} c5 {[%emt 0:00:36]} 15. h3 {[%emt 0:04:41]} e5 {[%emt 0:03:01]} 16. dxe5 {[%emt 0:03:33]} Bxf3 {[%emt 0:00:20]} 17. gxf3 {[%emt 0:00:11]} Nxe5 {[%emt 0:00:53]} 18. Bf1 {[%emt 0:08:03]} Qe7 {[%emt 0:01:40]} 19. Rd2 {[%emt 0:05:43]} Rad8 {[%emt 0:00:43]} 20. Nd5 {[%emt 0:02:02]} Nxd5 {[%emt 0:00:18]} 21. Rxd5 {[%emt 0:00:21]} Ng6 {[%emt 0:01:21]} 22. Re2 {[%emt 0:02:45]} Be5 {[%emt 0:15:41]} 23. Bxe5 {[%emt 0:02:30]} Rxd5 {[%emt 0:00:14]} 24. Qxd5 {[%emt 0:01:19]} Rd8 {[%emt 0:00:36]} 25. Qe4 {[%emt 0:03:33]} Qxe5 {[%emt 0:00:07]} 26. Qxe5 {[%emt 0:05:14]} Nxe5 {[%emt 0:00:05]} 27. Rb2 {[%emt 0:00:09]} Nxf3+ {[%emt 0:01:03]} 28. Kg2 {[%emt 0:00:09]} Nh4+ {[%emt 0:04:20]} 29. Kg3 {[%emt 0:00:12]} g5 {[%emt 0:00:14]} 30. Bg2 {[%emt 0:01:56]} Nxg2 {[%emt 0:03:10]} 31. Kxg2 {[%emt 0:00:03]} Rd6 {[%emt 0:00:07]} 32. Kf3 {[%emt 0:03:35]} Kg7 {[%emt 0:05:08]} 33. a4 {[%emt 0:01:12]} a5 {[%emt 0:01:54]} 34. Ke4 {[%emt 0:03:49]} Kg6 {[%emt 0:02:10]} 35. f4 {[%emt 0:03:18]} f6 {[%emt 0:07:02]} 36. Rb3 {[%emt 0:03:49]} h5 {[%emt 0:04:56]} 37. fxg5 {[%emt 0:02:48]} Kxg5 {[%emt 0:01:53]} 38. Rb1 {[%emt 0:00:45]} Re6+ {[%emt 0:00:15]} 39. Kf3 {[%emt 0:00:31]} Kf5 {[%emt 0:00:07]} 40. Rd1 {[%emt 0:00:44]} Kg5 {[%emt 0:01:03]} 41. Rd5+ {[%emt 0:02:26]} f5 {[%emt 0:00:55]} 42. Rd8 {[%emt 0:02:03]} Re4 {[%emt 0:00:21]} 43. Rd6 {[%emt 0:00:42]} Rxc4 {[%emt 0:00:24]} 44. Rxb6 {[%emt 0:00:05]} Rxa4 {[%emt 0:18:36]} 45. Rb5 {[%emt 0:00:08]} Rh4 {[%emt 0:00:15]} 46. Kg3 {[%emt 0:04:10]} Rc4 {[%emt 0:02:57]} 47. Rxa5 {[%emt 0:01:34]} Rc3 {[%emt 0:00:07]} 48. h4+ {[%emt 0:01:33]} Kf6 {[%emt 0:00:02]} 49. Kf3 {[%emt 0:00:38]} Rc4 {[%emt 0:00:32]} 50. Ra6+ {[%emt 0:01:29]} Ke5 {[%emt 0:00:23]} 51. Rc6 {[%emt 0:00:13]} f4 {[%emt 0:02:12]} 52. exf4+ {[%emt 0:00:32]} Rxf4+ {[%emt 0:00:05]} 53. Kg3 {[%emt 0:00:56]} Rg4+ {[%emt 0:00:55]} 54. Kh3 {[%emt 0:00:19]} c4 {[%emt 0:00:12]} 55. Rc5+ {[%emt 0:00:41]} Kd4 {[%emt 0:00:07]} 56. Rxh5 {[%emt 0:00:52]} Re4 {[%emt 0:03:54]} 57. Rh8 {[%emt 0:04:08]} c3 {[%emt 0:00:17]} 58. Rc8 {[%emt 0:03:09]} Kd3 {[%emt 0:00:29]} 59. h5 {[%emt 0:01:22]} c2 {[%emt 0:00:13]} 60. h6 {[%emt 0:00:41]} Re6 {[%emt 0:02:24]} 61. Kg2 {[%emt 0:02:12]} Rxh6 {[%emt 0:00:17]} 62. Rd8+ {[%emt 0:00:27]} Ke2 {[%emt 0:00:21]} 63. Re8+ {[%emt 0:00:09]} Kd2 {[%emt 0:00:05]} 64. Rd8+ {[%emt 0:00:12]} Kc1 {[%emt 0:00:09]} 65. Kf2 {[%emt 0:00:21]} Rb6 {[%emt 0:00:23]} 0-1

[Event "SixDays Budapest GM-A 09-2024"]
[Site "Budapest"]
[Date "2024.09.26"]
[Round "5.3"]
[White "Panda Sambit"]
[Black "Nagy, Gabor"]
[Result "1-0"]
[ECO "E47"]
[WhiteElo "2367"]
[BlackElo "2459"]
[Annotator "RC"]
[PlyCount "117"]
[EventDate "2024.09.24"]
[EventType "tourn"]
[EventCountry "HUN"]
[SourceTitle "playchess.com"]
[Source "ChessBase"]
[SourceQuality "1"]
[TimeControl "5400+30"]

1. d4 {[%emt 0:05:11]} Nf6 {[%emt 0:00:25]} 2. c4 {[%emt 0:00:17]} e6 {[%emt 0:00:11]} 3. Nc3 {[%emt 0:00:16]} Bb4 {[%emt 0:00:16]} 4. e3 {[%emt 0:00:05]} O-O {[%emt 0:02:14]} 5. Bd3 {[%emt 0:00:06]} c5 {[%emt 0:00:22]} 6. Nge2 {[%emt 0:00:07]} d5 {[%emt 0:00:20]} 7. cxd5 {[%emt 0:01:08]} cxd4 {[%emt 0:00:12]} 8. exd4 {[%emt 0:00:00]} Nxd5 {[%emt 0:00:00]} 9. O-O {[%emt 0:00:00]} Nc6 {[%emt 0:00:00]} 10. a3 {[%emt 0:00:00]} Bd6 {[%emt 0:01:04]} 11. Re1 {[%emt 0:00:00]} Re8 {[%emt 0:01:01]} 12. Bc2 {[%emt 0:00:43]} Nxc3 {[%emt 0:02:58]} 13. bxc3 {[%emt 0:00:14]} b6 {[%emt 0:01:29]} 14. Ng3 {[%emt 0:02:04]} Bb7 {[%emt 0:01:36]} 15. Ne4 {[%emt 0:05:38]} Be7 {[%emt 0:03:19]} 16. h4 {[%emt 0:26:11]} Rc8 {[%emt 0:02:21]} 17. Ng5 {[%emt 0:04:00]} Bxg5 {[%emt 0:00:25]} 18. Bxg5 {[%emt 0:02:43]} Qd7 {[%emt 0:01:58]} 19. Qd3 {[%emt 0:03:48]} f5 {[%emt 0:01:43]} 20. d5 {[%emt 0:01:32]} h6 {[%emt 0:01:07]} 21. Bf4 {[%emt 0:19:23]} Ne7 {[%emt 0:04:11]} 22. dxe6 {[%emt 0:03:20]} Qxd3 {[%emt 0:00:36]} 23. Bxd3 {[%emt 0:00:02]} Rxc3 {[%emt 0:00:08]} 24. Rad1 {[%emt 0:01:00]} Bc6 {[%emt 0:01:35]} 25. Bd6 {[%emt 0:12:40]} Ba4 {[%emt 0:01:08]} 26. Bb4 {[%emt 0:00:14]} Bxd1 {[%emt 0:04:30]} 27. Bxc3 {[%emt 0:00:06]} Ba4 {[%emt 0:00:18]} 28. h5 {[%emt 0:06:20]} Rd8 {[%emt 0:00:21]} 29. Bb1 {[%emt 0:00:52]} Kf8 {[%emt 0:05:06]} 30. Kh2 {[%emt 0:01:06]} a5 {[%emt 0:01:46]} 31. Be5 {[%emt 0:01:05]} Rd1 {[%emt 0:01:33]} 32. Rxd1 {[%emt 0:00:52]} Bxd1 {[%emt 0:00:08]} 33. Bd6 {[%emt 0:01:01]} Ke8 {[%emt 0:02:34]} 34. Be5 {[%emt 0:03:01]} Kf8 {[%emt 0:00:32]} 35. Bc7 {[%emt 0:02:20]} Bb3 {[%emt 0:00:31]} 36. Bxb6 {[%emt 0:00:11]} a4 {[%emt 0:00:07]} 37. Bc5 {[%emt 0:00:36]} Bxe6 {[%emt 0:00:08]} 38. Bc2 {[%emt 0:00:09]} Bd7 {[%emt 0:00:32]} 39. Kg3 {[%emt 0:00:13]} Kf7 {[%emt 0:00:15]} 40. Bxe7 {[%emt 0:01:24]} Kxe7 {[%emt 0:00:06]} 41. Kf4 {[%emt 0:00:03]} Kf6 {[%emt 0:00:08]} 42. f3 {[%emt 0:00:05]} Be8 {[%emt 0:02:28]} 43. Bxf5 {[%emt 0:00:08]} Bxh5 {[%emt 0:00:05]} 44. Bd7 {[%emt 0:00:04]} g5+ {[%emt 0:00:07]} 45. Ke3 {[%emt 0:01:37]} Ke5 {[%emt 0:00:07]} 46. Bxa4 {[%emt 0:00:09]} Bg6 {[%emt 0:00:28]} 47. Bb3 {[%emt 0:00:23]} h5 {[%emt 0:00:24]} 48. a4 {[%emt 0:00:13]} h4 {[%emt 0:02:10]} 49. a5 {[%emt 0:00:32]} Kd6 {[%emt 0:00:27]} 50. Kd4 {[%emt 0:01:00]} Bh5 {[%emt 0:00:14]} 51. Bd5 {[%emt 0:00:17]} Kc7 {[%emt 0:00:26]} 52. Kc5 {[%emt 0:00:05]} g4 {[%emt 0:00:12]} 53. fxg4 {[%emt 0:00:41]} Bxg4 {[%emt 0:00:06]} 54. a6 {[%emt 0:00:02]} Bc8 {[%emt 0:00:18]} 55. a7 {[%emt 0:00:34]} Bb7 {[%emt 0:00:04]} 56. a8=Q {[%emt 0:00:28]} Bxa8 {[%emt 0:00:03]} 57. Bxa8 {[%emt 0:00:04]} h3 {[%emt 0:00:02]} 58. g3 {[%emt 0:00:06]} h2 {[%emt 0:00:12]} 59. Bh1 {[%emt 0:00:15]} 1-0

[Event "SixDays Budapest GM-A 09-2024"]
[Site "Budapest"]
[Date "2024.09.26"]
[Round "5.4"]
[White "Defromont, Benjamin"]
[Black "Berczes, David"]
[Result "1/2-1/2"]
[ECO "B10"]
[WhiteElo "2383"]
[BlackElo "2400"]
[Annotator "RC"]
[PlyCount "193"]
[EventDate "2024.09.24"]
[EventType "tourn"]
[EventCountry "HUN"]
[SourceTitle "playchess.com"]
[Source "ChessBase"]
[SourceQuality "1"]
[TimeControl "5400+30"]

1. e4 {[%emt 0:04:39]} c6 {[%emt 0:16:36]} 2. d3 {[%emt 0:00:37]} d5 {[%emt 0:00:57]} 3. Bf4 {[%emt 0:00:00]} dxe4 {[%emt 0:09:33]} 4. Nc3 e3 {[%emt 0:02:17]} 5. fxe3 {[%emt 0:05:10]} Nf6 {[%emt 0:04:34]} 6. e4 {[%emt 0:05:24]} e5 {[%emt 0:37:58]} 7. Bxe5 {[%emt 0:07:00]} Ng4 {[%emt 0:01:00]} 8. Bg3 {[%emt 0:00:43]} Qb6 {[%emt 0:13:04]} 9. Qd2 {[%emt 0:10:05]} g6 {[%emt 0:00:37]} 10. O-O-O {[%emt 0:10:24]} Ne3 {[%emt 0:04:57]} 11. Na4 {[%emt 0:09:57]} Qd4 {[%emt 0:00:06]} 12. Nf3 {[%emt 0:00:30]} Qxa4 {[%emt 0:00:57]} 13. Qxe3 {[%emt 0:00:06]} Qxa2 {[%emt 0:00:20]} 14. Be5 {[%emt 0:05:14]} Rg8 {[%emt 0:02:26]} 15. Bc3 {[%emt 0:08:32]} Bg4 {[%emt 0:02:06]} 16. d4 {[%emt 0:07:57]} Na6 {[%emt 0:00:26]} 17. Qf4 {[%emt 0:03:54]} Be6 {[%emt 0:00:34]} 18. Bd3 {[%emt 0:13:26]} O-O-O {[%emt 0:00:27]} 19. Kd2 {[%emt 0:00:46]} g5 {[%emt 0:00:33]} 20. Nxg5 {[%emt 0:02:10]} Bd6 {[%emt 0:00:31]} 21. Qf2 {[%emt 0:01:47]} Be7 {[%emt 0:00:30]} 22. Nf3 {[%emt 0:00:28]} Bb4 {[%emt 0:00:29]} 23. Ke3 {[%emt 0:01:22]} Bxc3 {[%emt 0:00:30]} 24. bxc3 {[%emt 0:00:11]} Qa5 {[%emt 0:00:28]} 25. c4 {[%emt 0:01:45]} Nb4 {[%emt 0:00:33]} 26. Ra1 {[%emt 0:00:28]} Qh5 {[%emt 0:00:27]} 27. Rxa7 {[%emt 0:00:25]} f5 {[%emt 0:00:33]} 28. Ra8+ {[%emt 0:00:43]} Kc7 {[%emt 0:00:03]} 29. Rxd8 {[%emt 0:00:04]} Kxd8 {[%emt 0:00:53]} 30. Rb1 {[%emt 0:00:49]} Qh6+ {[%emt 0:00:33]} 31. Ke2 {[%emt 0:00:16]} Nxd3 {[%emt 0:00:31]} 32. cxd3 {[%emt 0:00:27]} fxe4 {[%emt 0:00:03]} 33. dxe4 {[%emt 0:00:54]} Bxc4+ {[%emt 0:00:08]} 34. Ke1 {[%emt 0:00:03]} Bd3 {[%emt 0:01:10]} 35. Ra1 {[%emt 0:00:19]} Rg4 {[%emt 0:00:39]} 36. Ne5 {[%emt 0:01:20]} Rxe4+ {[%emt 0:00:13]} 37. Kd1 {[%emt 0:00:03]} Be2+ {[%emt 0:00:43]} 38. Qxe2 {[%emt 0:00:57]} Rxe2 {[%emt 0:00:33]} 39. Nf7+ {[%emt 0:00:01]} Kc7 {[%emt 0:00:29]} 40. Nxh6 {[%emt 0:00:03]} Rxg2 {[%emt 0:00:03]} 41. Ra8 {[%emt 0:00:59]} Rxh2 {[%emt 0:00:06]} 42. Nf5 {[%emt 0:00:05]} Rf2 {[%emt 0:00:26]} 43. Ne3 {[%emt 0:00:15]} Rf4 {[%emt 0:00:16]} 44. Nc2 {[%emt 0:00:43]} Rf5 {[%emt 0:01:28]} 45. Rh8 {[%emt 0:00:08]} Rd5 {[%emt 0:00:42]} 46. Rxh7+ {[%emt 0:00:25]} Kc8 {[%emt 0:00:26]} 47. Kd2 {[%emt 0:00:44]} c5 {[%emt 0:00:05]} 48. Kc3 {[%emt 0:00:03]} cxd4+ {[%emt 0:00:18]} 49. Nxd4 {[%emt 0:00:04]} Rc5+ {[%emt 0:00:36]} 50. Kb4 {[%emt 0:00:06]} Re5 {[%emt 0:01:06]} 51. Nb5 {[%emt 0:00:20]} Kd8 {[%emt 0:00:25]} 52. Rxb7 {[%emt 0:02:02]} Ke8 {[%emt 0:00:14]} 53. Nd6+ {[%emt 0:00:10]} Kf8 {[%emt 0:00:05]} 54. Kc4 {[%emt 0:00:04]} Kg8 {[%emt 0:01:07]} 55. Kd4 {[%emt 0:00:20]} Re1 {[%emt 0:00:24]} 56. Ne4 {[%emt 0:00:06]} Rd1+ {[%emt 0:00:40]} 57. Ke5 {[%emt 0:00:07]} Re1 {[%emt 0:00:13]} 58. Kf5 {[%emt 0:00:13]} Rf1+ {[%emt 0:00:44]} 59. Kg6 {[%emt 0:00:11]} Rg1+ {[%emt 0:00:35]} 60. Ng5 {[%emt 0:00:04]} Kf8 {[%emt 0:00:03]} 61. Kf6 {[%emt 0:01:06]} Rf1+ {[%emt 0:00:27]} 62. Ke5 {[%emt 0:00:11]} Re1+ {[%emt 0:00:15]} 63. Ne4 {[%emt 0:00:04]} Kg8 {[%emt 0:00:29]} 64. Re7 {[%emt 0:01:47]} Kf8 {[%emt 0:00:21]} 65. Kf6 {[%emt 0:00:37]} Rf1+ {[%emt 0:00:53]} 66. Ke6 {[%emt 0:00:06]} Re1 {[%emt 0:01:04]} 67. Rf7+ {[%emt 0:00:25]} Ke8 {[%emt 0:00:21]} 68. Rf4 {[%emt 0:00:06]} Kd8 {[%emt 0:00:13]} 69. Kd6 {[%emt 0:00:25]} Rd1+ {[%emt 0:00:12]} 70. Kc6 {[%emt 0:00:09]} Rc1+ {[%emt 0:00:53]} 71. Nc5 {[%emt 0:00:03]} Ke7 {[%emt 0:00:09]} 72. Rf2 {[%emt 0:00:18]} Ke8 {[%emt 0:00:20]} 73. Kd6 {[%emt 0:00:36]} Rd1+ {[%emt 0:00:09]} 74. Ke6 {[%emt 0:00:07]} Re1+ {[%emt 0:00:13]} 75. Kd6 {[%emt 0:00:06]} Rd1+ {[%emt 0:00:04]} 76. Ke5 {[%emt 0:00:03]} Re1+ {[%emt 0:00:07]} 77. Ne4 {[%emt 0:00:03]} Kd7 {[%emt 0:00:30]} 78. Rf6 {[%emt 0:00:07]} Kc7 {[%emt 0:00:13]} 79. Rf7+ {[%emt 0:00:19]} Kc6 {[%emt 0:00:11]} 80. Kd4 {[%emt 0:00:04]} Rd1+ {[%emt 0:00:07]} 81. Kc4 {[%emt 0:00:04]} Rc1+ {[%emt 0:00:11]} 82. Nc3 {[%emt 0:00:04]} Kd6 {[%emt 0:00:07]} 83. Rf6+ {[%emt 0:00:05]} Ke7 {[%emt 0:00:08]} 84. Ra6 {[%emt 0:00:07]} Kf7 {[%emt 0:00:12]} 85. Kd4 {[%emt 0:00:05]} Kg7 {[%emt 0:00:15]} 86. Ne4 {[%emt 0:00:05]} Rd1+ {[%emt 0:00:11]} 87. Ke5 {[%emt 0:00:09]} Re1 {[%emt 0:00:08]} 88. Ra7+ {[%emt 0:00:09]} Kf8 {[%emt 0:01:50]} 89. Rb7 {[%emt 0:02:27]} Ke8 {[%emt 0:02:09]} 90. Kd5 {[%emt 0:01:10]} Kf8 {[%emt 0:00:22]} 91. Nf6 {[%emt 0:00:24]} Rd1+ {[%emt 0:01:02]} 92. Ke6 {[%emt 0:00:13]} Re1+ {[%emt 0:00:06]} 93. Kf5 {[%emt 0:00:23]} Rf1+ {[%emt 0:00:08]} 94. Ke5 {[%emt 0:00:06]} Rf5+ {[%emt 0:01:06]} 95. Ke6 {[%emt 0:00:12]} Re5+ {[%emt 0:00:03]} 96. Kd6 {[%emt 0:00:11]} Re6+ {[%emt 0:00:03]} 97. Kxe6 {[%emt 0:00:04]} 1/2-1/2

[Event "SixDays Budapest GM-A 09-2024"]
[Site "Budapest"]
[Date "2024.09.26"]
[Round "5.5"]
[White "Lee, Junhyeok"]
[Black "Wachinger, Nikolas"]
[Result "1/2-1/2"]
[ECO "B90"]
[WhiteElo "2364"]
[BlackElo "2442"]
[Annotator "RC"]
[PlyCount "160"]
[EventDate "2024.09.24"]
[EventType "tourn"]
[EventCountry "HUN"]
[SourceTitle "playchess.com"]
[Source "ChessBase"]
[SourceQuality "1"]
[TimeControl "5400+30"]

1. e4 {[%emt 0:03:26]} c5 {[%emt 0:00:09]} 2. Nf3 {[%emt 0:00:02]} d6 {[%emt 0:00:06]} 3. d4 {[%emt 0:00:05]} cxd4 {[%emt 0:00:05]} 4. Nxd4 {[%emt 0:00:02]} Nf6 {[%emt 0:00:09]} 5. Nc3 {[%emt 0:00:03]} a6 {[%emt 0:00:08]} 6. f3 {[%emt 0:00:04]} e5 {[%emt 0:00:33]} 7. Nb3 {[%emt 0:00:06]} Be6 {[%emt 0:00:07]} 8. Be3 {[%emt 0:00:04]} h5 {[%emt 0:00:35]} 9. Qd2 {[%emt 0:00:14]} Nbd7 {[%emt 0:00:13]} 10. O-O-O {[%emt 0:00:08]} Be7 {[%emt 0:00:57]} 11. Nd5 {[%emt 0:00:46]} Nxd5 {[%emt 0:00:21]} 12. exd5 {[%emt 0:00:07]} Bf5 {[%emt 0:00:07]} 13. Kb1 {[%emt 0:00:14]} Rc8 {[%emt 0:05:05]} 14. Rc1 {[%emt 0:00:19]} O-O {[%emt 0:06:44]} 15. Rg1 {[%emt 0:00:05]} Nf6 {[%emt 0:04:06]} 16. Be2 {[%emt 0:00:04]} b5 {[%emt 0:12:32]} 17. Ka1 {[%emt 0:07:39]} Qd7 {[%emt 0:12:59]} 18. c4 {[%emt 0:03:15]} bxc4 {[%emt 0:01:29]} 19. Bxc4 {[%emt 0:00:52]} Rxc4 {[%emt 0:16:57]} 20. Rxc4 {[%emt 0:00:19]} Qb5 {[%emt 0:00:06]} 21. Rgc1 {[%emt 0:09:04]} Nxd5 {[%emt 0:01:31]} 22. Bg5 {[%emt 0:08:52]} f6 {[%emt 0:07:21]} 23. a4 {[%emt 0:05:41]} Qd7 {[%emt 0:12:23]} 24. Qxd5+ {[%emt 0:02:46]} Be6 {[%emt 0:00:03]} 25. Qc6 {[%emt 0:11:35]} Qxc6 {[%emt 0:00:25]} 26. Rxc6 {[%emt 0:00:04]} Bxb3 {[%emt 0:01:26]} 27. Bd2 {[%emt 0:00:22]} Bxa4 {[%emt 0:00:52]} 28. Rxa6 {[%emt 0:00:16]} Bb5 {[%emt 0:01:59]} 29. Ra7 {[%emt 0:01:10]} Kf7 {[%emt 0:00:40]} 30. f4 {[%emt 0:04:56]} g6 {[%emt 0:02:22]} 31. fxe5 {[%emt 0:01:13]} Ke6 {[%emt 0:01:21]} 32. exd6 {[%emt 0:03:03]} Bxd6 {[%emt 0:00:11]} 33. Re1+ {[%emt 0:01:09]} Kf5 {[%emt 0:01:40]} 34. Ra5 {[%emt 0:02:17]} Rb8 {[%emt 0:00:05]} 35. h3 {[%emt 0:06:06]} h4 {[%emt 0:01:30]} 36. Bc3 {[%emt 0:03:41]} Bc7 {[%emt 0:01:08]} 37. Ra7 {[%emt 0:02:19]} Bf4 {[%emt 0:01:20]} 38. b3 {[%emt 0:01:48]} g5 {[%emt 0:02:32]} 39. Ka2 {[%emt 0:04:00]} Bg3 {[%emt 0:03:27]} 40. Re3 {[%emt 0:00:45]} Bf4 {[%emt 0:00:32]} 41. Rf3 {[%emt 0:05:54]} Kg6 {[%emt 0:00:04]} 42. Rf2 {[%emt 0:00:30]} Rc8 {[%emt 0:02:07]} 43. Kb2 {[%emt 0:00:41]} Rc6 {[%emt 0:00:44]} 44. Ra5 {[%emt 0:02:01]} Bd3 {[%emt 0:00:42]} 45. b4 {[%emt 0:01:52]} Bg3 {[%emt 0:01:03]} 46. Rd2 {[%emt 0:01:00]} Bf1 {[%emt 0:00:54]} 47. Rc5 {[%emt 0:00:57]} Re6 {[%emt 0:00:28]} 48. Kb3 {[%emt 0:00:52]} Bf4 {[%emt 0:01:31]} 49. Rf2 {[%emt 0:00:39]} Bd3 {[%emt 0:00:02]} 50. Bd4 {[%emt 0:00:44]} Bd6 {[%emt 0:00:58]} 51. Rc3 {[%emt 0:00:50]} Bb5 {[%emt 0:00:21]} 52. Re3 {[%emt 0:00:35]} Rxe3+ {[%emt 0:00:44]} 53. Bxe3 {[%emt 0:00:06]} Be5 {[%emt 0:00:02]} 54. Rd2 {[%emt 0:01:11]} Kf5 {[%emt 0:00:10]} 55. Bd4 {[%emt 0:00:31]} Bf4 {[%emt 0:01:11]} 56. Rf2 {[%emt 0:01:30]} Ke6 {[%emt 0:00:04]} 57. Ra2 {[%emt 0:00:23]} f5 {[%emt 0:00:38]} 58. Kc3 {[%emt 0:01:04]} Bf1 {[%emt 0:00:30]} 59. Rf2 {[%emt 0:01:01]} Bb5 {[%emt 0:00:06]} 60. Bh8 {[%emt 0:01:16]} Bg3 {[%emt 0:01:09]} 61. Rf3 {[%emt 0:00:29]} f4 {[%emt 0:00:41]} 62. Kd2 {[%emt 0:02:39]} Bc6 {[%emt 0:00:02]} 63. Ke2 {[%emt 0:00:32]} Bb5+ {[%emt 0:00:05]} 64. Kd2 {[%emt 0:00:30]} Bc6 {[%emt 0:00:04]} 65. Bd4 {[%emt 0:00:49]} g4 {[%emt 0:01:06]} 66. hxg4 {[%emt 0:03:05]} Bxf3 {[%emt 0:00:17]} 67. gxf3 {[%emt 0:00:03]} h3 {[%emt 0:00:08]} 68. Bg1 {[%emt 0:00:02]} Bf2 {[%emt 0:00:35]} 69. Bh2 {[%emt 0:00:04]} Bg3 {[%emt 0:00:04]} 70. Bg1 {[%emt 0:00:03]} h2 {[%emt 0:01:22]} 71. Bxh2 {[%emt 0:00:03]} Bxh2 {[%emt 0:00:03]} 72. Kd3 {[%emt 0:00:45]} Kd5 {[%emt 0:00:04]} 73. b5 {[%emt 0:00:36]} Bg1 {[%emt 0:00:19]} 74. g5 {[%emt 0:00:25]} Ke5 {[%emt 0:01:31]} 75. g6 {[%emt 0:00:10]} Kf6 {[%emt 0:00:02]} 76. Ke4 {[%emt 0:00:05]} Be3 {[%emt 0:00:05]} 77. b6 {[%emt 0:00:22]} Bxb6 {[%emt 0:00:09]} 78. Kxf4 {[%emt 0:00:03]} Kxg6 {[%emt 0:00:06]} 79. Ke4 {[%emt 0:00:05]} Bc7 {[%emt 0:00:05]} 80. f4 {[%emt 0:00:02]} Bxf4 1/2-1/2